bitfinex/quotes_BTCUSD_20220205
["timestamp","ask_amount","ask_price","bid_price","bid_amount"]
[1644081284666,0.00067297,41072.0,41069.0,0.0449]
[1644081284865,0.00067297,41072.0,41071.0,0.005]
[1644081285064,0.56,41079.0,41071.0,0.005]
[1644081285265,0.045,41078.0,41071.0,0.14417508]
[1644081285466,0.00067304,41074.0,41071.0,0.14417508]
[1644081285666,0.00067304,41074.0,41071.0,0.0449]
[1644081286063,0.00067304,41074.0,41071.0,0.01385541]
[1644081286265,0.27815443,41078.0,41071.0,0.28395974]
[1644081286564,0.045,41074.0,41071.0,0.01385541]
[1644081287017,0.07945592,41072.0,41061.0,0.305]
[1644081287217,0.045,41074.0,41065.0,0.10356654]
[1644081287415,0.045,41074.0,41066.0,0.0449]
[1644081287416,0.28650591,41071.0,41066.0,0.0449]
[1644081287615,0.28650591,41071.0,41061.0,0.005]
[1644081287815,0.28650591,41071.0,41062.0,0.0449]
[1644081288215,0.28650591,41071.0,41062.0,0.0949]
[1644081288715,0.28650591,41071.0,41062.0,0.0449]
[1644081288915,0.28650591,41071.0,41065.0,0.22902497]
[1644081289318,0.28650591,41071.0,41065.0,0.27902497]
[1644081289915,0.28650591,41071.0,41065.0,0.27402497]
[1644081290117,0.06357627,41070.0,41061.0,0.27079261]
[1644081290315,0.06357627,41070.0,41061.0,0.00067032]
[1644081290516,0.06357627,41070.0,41061.0,0.37711775]
[1644081290764,0.06357627,41070.0,41061.0,0.00067032]
[1644081291166,0.36728802,41063.0,41060.0,0.09164646]
[1644081291365,0.060901,41067.0,41053.0,0.31140075]
[1644081291565,0.060901,41067.0,41056.0,0.0449]
[1644081291764,0.060901,41067.0,41057.0,0.38545639]
[1644081291968,0.06357627,41070.0,41058.0,0.10360102]
[1644081292164,0.00029242,41072.0,41060.0,0.09880475]
[1644081292364,0.35212286,41068.0,41064.0,0.26678985]
[1644081292563,0.159434,41067.0,41064.0,0.26678985]
[1644081292764,0.159434,41067.0,41064.0,0.31678985]
[1644081292964,0.159434,41067.0,41064.0,0.05]
[1644081293367,0.35212286,41068.0,41059.0,0.05]
[1644081293568,0.35212286,41068.0,41057.0,0.1038646]
[1644081293769,0.159434,41067.0,41061.0,0.00066767]
[1644081293968,0.2039164,41065.0,41061.0,0.00066767]
[1644081294425,0.159434,41064.0,41061.0,0.00066767]
[1644081294718,0.33718544,41060.0,41054.0,0.29019357]
[1644081294913,0.33718544,41060.0,41054.0,0.0022]
[1644081295312,0.33718544,41060.0,41054.0,0.25665801]
[1644081295523,0.33718544,41060.0,41054.0,0.0022]
[1644081295714,0.060905,41064.0,41054.0,0.0022]
[1644081296315,0.060905,41064.0,41054.0,0.0961628]
[1644081296512,0.060905,41064.0,41058.0,0.22464421]
[1644081296714,0.159434,41063.0,41054.0,0.0961628]
[1644081296914,0.33323012,41063.0,41054.0,0.0961628]
[1644081297113,0.33323012,41063.0,41055.0,0.0511]
[1644081297318,0.060905,41064.0,41055.0,0.0511]
[1644081297616,0.060905,41064.0,41057.0,2.25408805]
[1644081297815,0.060905,41064.0,41055.0,0.0011]
[1644081298266,0.060905,41064.0,41056.0,0.10343644]
[1644081298465,0.060905,41064.0,41059.0,0.29100202]
[1644081298866,0.5571,41066.0,41059.0,0.29100202]
[1644081299367,0.5571,41066.0,41065.0,0.24401934]
[1644081299566,0.5571,41066.0,41065.0,0.28891934]
[1644081299768,0.00029293,41072.0,41065.0,0.28891934]
[1644081300370,0.045,41069.0,41065.0,0.28891934]
[1644081300769,0.045,41069.0,41065.0,0.0449]
[1644081300969,0.045,41069.0,41068.0,0.005]
[1644081301170,0.045,41069.0,41066.0,0.36735048]
[1644081301371,0.00029296,41072.0,41068.0,0.005]
[1644081301923,0.5445,41078.0,41071.0,0.19633099]
[1644081302117,0.00029298,41072.0,41071.0,0.19633099]
[1644081302316,0.00029298,41072.0,41071.0,0.53497499]
[1644081302718,0.00029298,41072.0,41071.0,1.01749314]
[1644081302915,0.00029298,41072.0,41071.0,0.4368577]
[1644081303117,0.045,41072.0,41071.0,0.0449]
[1644081303317,0.20416776,41072.0,41071.0,0.0449]
[1644081303916,0.44506553,41072.0,41063.0,0.05]
[1644081304119,0.04473376,41066.0,41061.0,0.00066771]
[1644081304321,0.04473376,41066.0,41055.0,0.0011]
[1644081304322,0.04473376,41063.0,41055.0,0.0011]
[1644081304716,0.04473376,41057.0,41055.0,0.0011]
[1644081304916,0.2078119,41062.0,41055.0,0.23156534]
[1644081305120,0.5632,41064.0,41055.0,0.23156534]
[1644081305121,0.38701062,41056.0,41055.0,0.23156534]
[1644081305316,0.38701062,41056.0,41055.0,0.0011]
[1644081305517,0.54644462,41056.0,41055.0,0.0011]
[1644081306564,0.3039522,41061.0,41055.0,0.0011]
[1644081306765,0.159434,41060.0,41055.0,0.0011]
[1644081307565,0.32519071,41059.0,41055.0,0.0011]
[1644081307770,0.159434,41058.0,41055.0,0.0011]
[1644081307965,0.159434,41058.0,41056.0,0.05]
[1644081308168,0.07901394,41057.0,41055.0,0.00176277]
[1644081308369,0.3,41056.0,41055.0,0.00176277]
[1644081308571,0.459434,41056.0,41054.0,6.277e-05]
[1644081308767,0.459434,41056.0,41050.0,0.0053]
[1644081308768,0.159434,41056.0,41050.0,0.0053]
[1644081308967,0.52717998,41055.0,41049.0,0.09661423]
[1644081309168,0.32621956,41052.0,41049.0,0.09396277]
[1644081309423,0.159434,41051.0,41049.0,0.09396277]
[1644081309619,0.32621956,41052.0,41049.0,0.09396277]
[1644081309819,0.159434,41051.0,41049.0,0.09396277]
[1644081310220,0.22775238,41054.0,41050.0,0.05]
[1644081310424,0.22775238,41054.0,41049.0,0.09396277]
[1644081310820,0.22775238,41054.0,41049.0,0.14408767]
[1644081311021,0.62007677,41054.0,41049.0,0.19408767]
[1644081311222,0.62007677,41054.0,41049.0,0.18908767]
[1644081312122,0.62007677,41054.0,41049.0,0.19951767]
[1644081312326,0.39232439,41054.0,41049.0,0.19951767]
[1644081312523,0.27717998,41055.0,41049.0,0.19951767]
[1644081312726,0.27717998,41055.0,41054.0,0.05]
[1644081312927,0.27717998,41055.0,41054.0,0.0949]
[1644081313371,0.27717998,41055.0,41054.0,0.35290596]
[1644081313571,0.27717998,41055.0,41054.0,0.30290596]
[1644081313773,0.27717998,41055.0,41054.0,0.35290596]
[1644081314375,0.27717998,41055.0,41054.0,0.30290596]
[1644081314575,0.27717998,41055.0,41054.0,0.35290596]
[1644081315177,0.27717998,41055.0,41054.0,1.02634198]
[1644081315377,0.27717998,41055.0,41054.0,0.97634198]
[1644081315581,0.27717998,41055.0,41054.0,1.12873427]
[1644081316578,0.27717998,41055.0,41054.0,1.02634198]
[1644081316777,0.27717998,41055.0,41054.0,1.12096614]
[1644081317017,0.27717998,41055.0,41054.0,1.45758206]
[1644081317216,0.27717998,41055.0,41054.0,1.3629579]
[1644081317418,0.27717998,41055.0,41054.0,1.47008143]
[1644081317616,0.27717998,41055.0,41054.0,0.93628799]
[1644081317817,0.27717998,41055.0,41052.0,0.00062798]
[1644081318219,0.00062785,41061.0,41052.0,0.00062798]
[1644081318416,0.27717998,41054.0,41052.0,0.00062798]
[1644081318816,0.27717998,41054.0,41051.0,0.20761372]
[1644081319020,0.27717998,41054.0,41051.0,0.20823143]
[1644081319416,0.27717998,41054.0,41051.0,0.00061771]
[1644081320016,0.159434,41053.0,41049.0,0.10451767]
[1644081320217,0.27717998,41054.0,41049.0,0.10439277]
[1644081320417,0.27717998,41054.0,41049.0,0.10451767]
[1644081320676,0.27217998,41054.0,41053.0,0.05]
[1644081320880,0.27217998,41054.0,41051.0,0.29039232]
[1644081321077,0.27217998,41054.0,41049.0,0.0001249]
[1644081321377,0.159434,41053.0,41050.0,0.00061893]
[1644081321577,0.27217998,41054.0,41052.0,0.05]
[1644081321777,0.27217998,41054.0,41050.0,0.00061893]
[1644081321977,0.57427883,41054.0,41050.0,0.00061893]
[1644081322178,0.159434,41053.0,41050.0,0.00061893]
[1644081322377,0.159434,41053.0,41049.0,0.00012497]
[1644081322577,0.25,41052.0,41048.0,0.00156059]
[1644081322778,0.159434,41051.0,41048.0,0.00143562]
[1644081322977,0.159434,41051.0,41048.0,0.00156059]
[1644081323177,0.159434,41051.0,41050.0,0.23782596]
[1644081323384,0.159434,41051.0,41046.0,0.00096059]
[1644081323580,0.159434,41050.0,41046.0,0.00096059]
[1644081323778,0.43161398,41050.0,41046.0,0.00096059]
[1644081324179,0.49254098,41050.0,41046.0,0.00096059]
[1644081324426,0.159434,41049.0,41046.0,0.00096059]
[1644081324725,0.13969061,41048.0,41042.0,0.0053]
[1644081324925,0.909434,41047.0,41039.0,0.0011]
[1644081325123,0.55,41046.0,41039.0,0.0011]
[1644081325324,0.159434,41045.0,41039.0,0.0011]
[1644081325822,0.159434,41042.0,41039.0,0.0011]
[1644081326223,0.159434,41042.0,41040.0,0.00065968]
[1644081326624,0.159434,41041.0,41040.0,0.00065968]
[1644081327225,0.159434,41040.0,41039.0,0.0011]
[1644081327924,0.23016604,41040.0,41039.0,0.0011]
[1644081328971,0.50234602,41040.0,41039.0,0.0011]
[1644081329774,0.50234602,41040.0,41037.0,0.00065971]
[1644081329775,0.7,41039.0,41037.0,0.00065971]
[1644081329977,0.7,41039.0,41034.0,0.0033]
[1644081329978,0.4,41037.0,41034.0,0.0033]
[1644081330177,0.10094,41039.0,41026.0,0.172624]
[1644081330178,0.3,41036.0,41026.0,0.172624]
[1644081330374,0.159434,41036.0,41026.0,0.172624]
[1644081330574,0.45,41035.0,41028.0,0.05]
[1644081330776,0.00249107,41031.0,41028.0,0.04750893]
[1644081330974,0.00249107,41031.0,41026.0,0.172624]
[1644081330975,0.121904,41030.0,41026.0,0.172624]
[1644081331182,0.28666304,41027.0,41026.0,0.172624]
[1644081331378,0.28666304,41027.0,41026.0,0.22013293]
[1644081332018,0.28666304,41027.0,41026.0,0.26928472]
[1644081332216,0.28666304,41027.0,41026.0,0.172624]
[1644081332423,0.44609704,41027.0,41026.0,0.172624]
[1644081332818,0.44609704,41027.0,41022.0,0.00064015]
[1644081332819,0.7,41026.0,41018.0,0.09783626]
[1644081333019,0.00249107,41021.0,41020.0,0.002]
[1644081333616,0.04313,41022.0,41020.0,0.18926]
[1644081333820,0.00249107,41021.0,41020.0,0.17926]
[1644081334218,0.30249107,41021.0,41020.0,0.002]
[1644081334418,0.87900505,41021.0,41020.0,0.002]
[1644081334617,0.57900505,41021.0,41020.0,0.002]
[1644081335020,0.56900505,41021.0,41020.0,0.002]
[1644081335220,0.52410505,41021.0,41020.0,0.002]
[1644081336578,0.43161398,41021.0,41020.0,0.002]
[1644081336774,0.27217998,41021.0,41020.0,0.002]
[1644081337373,0.27217998,41021.0,41020.0,0.31992952]
[1644081338673,0.27217998,41021.0,41020.0,0.002]
[1644081339516,0.43161398,41021.0,41020.0,0.002]
[1644081339717,0.82775221,41021.0,41020.0,0.002]
[1644081340115,0.43161398,41021.0,41020.0,0.002]
[1644081340517,0.65988122,41021.0,41020.0,0.002]
[1644081340715,0.43161398,41021.0,41020.0,0.002]
[1644081342216,0.27217998,41021.0,41020.0,0.002]
[1644081342417,0.27217998,41021.0,41020.0,0.052]
[1644081342619,0.27217998,41021.0,41020.0,0.002]
[1644081342818,0.43161398,41021.0,41020.0,0.002]
[1644081343019,0.81984041,41021.0,41020.0,0.002]
[1644081344672,0.43161398,41021.0,41020.0,0.052]
[1644081345072,0.3,41031.0,41022.0,0.28625933]
[1644081345275,0.159434,41030.0,41021.0,0.6]
[1644081345472,0.421918,41032.0,41021.0,0.6]
[1644081345672,0.38958295,41032.0,41028.0,0.05]
[1644081345872,0.159434,41031.0,41026.0,0.22633274]
[1644081346072,0.220395,41031.0,41029.0,0.05]
[1644081346472,0.159434,41030.0,41026.0,0.00012405]
[1644081346674,0.159434,41030.0,41028.0,0.00061105]
[1644081346929,0.342338,41030.0,41028.0,0.00061105]
[1644081347119,0.342338,41030.0,41020.0,0.0469]
[1644081347120,0.22040451,41028.0,41027.0,0.05]
[1644081347321,0.060966,41027.0,41022.0,0.00012405]
[1644081347519,0.159434,41026.0,41021.0,0.00012405]
[1644081347720,0.159434,41026.0,41025.0,0.05]
[1644081348121,0.060966,41027.0,41025.0,0.05]
[1644081348320,0.060966,41027.0,41026.0,0.05]
[1644081348521,0.060966,41027.0,41024.0,0.00012405]
[1644081348522,0.13621964,41027.0,41024.0,0.00012405]
[1644081348724,0.28137,41026.0,41022.0,0.00012405]
[1644081348920,0.281371,41025.0,41020.0,0.002]
[1644081349322,0.182904,41025.0,41020.0,0.002]
[1644081349526,0.159434,41024.0,41022.0,0.3876439]
[1644081349722,0.060968,41024.0,41022.0,0.3876439]
[1644081350121,0.060968,41024.0,41020.0,0.00212405]
[1644081350322,0.159434,41023.0,41021.0,0.00036568]
[1644081350977,0.45571557,41023.0,41021.0,0.00036568]
[1644081351179,0.68437088,41022.0,41021.0,0.00036568]
[1644081351377,0.54913884,41022.0,41020.0,0.002]
[1644081351576,0.159434,41021.0,41020.0,0.002]
[1644081352577,0.46691506,41021.0,41020.0,0.002]
[1644081353178,0.159434,41021.0,41020.0,0.002]
[1644081353378,0.43454987,41021.0,41020.0,0.002]
[1644081353778,0.53454987,41021.0,41020.0,0.002]
[1644081353978,0.55,41020.0,41018.0,0.00012405]
[1644081354178,0.55,41020.0,41017.0,0.0011]
[1644081354179,0.220412,41019.0,41017.0,0.0011]
[1644081354420,0.220412,41019.0,41015.0,0.19125901]
[1644081354615,0.55,41018.0,41015.0,0.19113496]
[1644081354819,0.22655747,41016.0,41015.0,0.19113496]
[1644081355014,0.22655747,41016.0,41015.0,0.14113496]
[1644081355214,0.6,41014.0,41011.0,0.01290635]
[1644081355415,0.06099,41012.0,41011.0,0.01290635]
[1644081355614,0.49244616,41012.0,41011.0,0.00790635]
[1644081355817,0.99590443,41012.0,41011.0,0.00790635]
[1644081356217,0.72388227,41012.0,41011.0,0.00290635]
[1644081356516,0.3055742,41012.0,41011.0,0.00290635]
[1644081356918,0.246004,41012.0,41011.0,0.05290635]
[1644081357117,0.159434,41012.0,41011.0,0.05290635]
[1644081357323,0.01893715,41016.0,41011.0,0.28643376]
[1644081357518,0.01893715,41016.0,41014.0,0.05]
[1644081358368,0.01893715,41016.0,41011.0,0.23643376]
[1644081358568,0.02124729,41021.0,41011.0,0.23643376]
[1644081358768,0.159434,41020.0,41011.0,0.00290635]
[1644081359169,0.159434,41020.0,41014.0,0.05]
[1644081359469,0.154434,41020.0,41011.0,0.00290635]
[1644081359769,0.154434,41020.0,41013.0,0.25321733]
[1644081359973,0.154434,41020.0,41014.0,0.05]
[1644081360176,0.060977,41016.0,41012.0,0.00064977]
[1644081360570,0.060977,41016.0,41013.0,0.05]
[1644081360776,0.12605522,41016.0,41012.0,0.00064977]
[1644081360970,0.154376,41015.0,41011.0,0.00290635]
[1644081361370,0.154376,41015.0,41013.0,0.05]
[1644081361569,0.154376,41015.0,41011.0,0.00290635]
[1644081362032,0.149376,41015.0,41011.0,0.00290635]
[1644081363336,0.06425532,41012.0,41011.0,0.00290635]
[1644081363537,0.271341,41012.0,41011.0,0.00290635]
[1644081363736,0.271341,41012.0,41011.0,0.05290635]
[1644081363937,0.271341,41012.0,41011.0,0.00290635]
[1644081364735,0.149372,41012.0,41011.0,0.00290635]
[1644081365666,0.149372,41012.0,41011.0,0.00490635]
[1644081365866,0.210353,41012.0,41011.0,0.00490635]
[1644081366069,0.75,41011.0,41010.0,0.0031]
[1644081366269,1.299372,41011.0,41010.0,0.0031]
[1644081366467,1.32870551,41011.0,41010.0,0.0031]
[1644081366667,0.35,41010.0,41009.0,0.00063855]
[1644081366868,0.35,41010.0,41008.0,0.0011]
[1644081366869,0.599372,41010.0,41008.0,0.0011]
[1644081367066,0.1,41010.0,41008.0,0.0011]
[1644081367267,0.1,41010.0,41006.0,0.0010247]
[1644081367268,0.182994,41009.0,41006.0,0.0010247]
[1644081367467,0.182994,41009.0,41005.0,0.00104167]
[1644081367468,0.811,41007.0,41005.0,0.00104167]
[1644081367669,0.811,41007.0,40996.0,0.00175324]
[1644081367670,0.07524494,40997.0,40996.0,0.00165328]
[1644081367872,0.149372,40997.0,40996.0,0.00165328]
[1644081368069,0.135782,40997.0,40996.0,0.00072008]
[1644081368269,0.33082684,40991.0,40984.0,0.21921726]
[1644081368468,0.33043386,40991.0,40984.0,0.00012401]
[1644081368672,0.06101,40989.0,40985.0,0.0062744]
[1644081369068,0.06101,40989.0,40984.0,0.00012401]
[1644081369069,0.05,40988.0,40984.0,0.00641561]
[1644081369273,0.122038,40987.0,40983.0,0.0008416]
[1644081369527,0.122038,40987.0,40984.0,0.00064443]
[1644081369724,0.06101996,40992.0,40984.0,0.00064443]
[1644081369927,0.061018,40987.0,40984.0,0.00064443]
[1644081370124,0.061018,40987.0,40984.0,0.00076846]
[1644081370429,0.061018,40987.0,40981.0,0.00077695]
[1644081370430,0.122038,40987.0,40981.0,0.00077695]
[1644081370624,0.122038,40987.0,40980.0,0.43641068]
[1644081370825,0.122038,40987.0,40981.0,0.3]
[1644081371026,0.02163704,40992.0,40989.0,0.2]
[1644081371427,0.02163704,40992.0,40983.0,0.30012404]
[1644081371628,0.02163704,40992.0,40984.0,0.00012404]
[1644081371825,0.02163704,40992.0,40987.0,0.26012239]
[1644081372326,0.02163704,40992.0,40989.0,0.43170299]
[1644081372525,0.02163704,40992.0,40989.0,0.33922]
[1644081372726,0.121995,41005.0,40999.0,0.2]
[1644081372930,0.5418,41006.0,40999.0,0.2]
[1644081373175,0.00029039,41002.0,40999.0,0.2]
[1644081374076,0.28886477,41004.0,40999.0,0.2]
[1644081374478,0.00029039,41002.0,40999.0,0.2]
[1644081374680,0.19968963,41000.0,40999.0,0.2]
[1644081375076,0.19748406,41000.0,40999.0,0.2]
[1644081375276,0.14748406,41000.0,40999.0,0.1807]
[1644081375678,0.19748406,41000.0,40999.0,0.1807]
[1644081375878,0.061014,40990.0,40985.0,0.00012404]
[1644081376079,0.061014,40990.0,40982.0,0.00174482]
[1644081376080,0.061014,40990.0,40984.0,0.00012404]
[1644081376284,0.061014,40990.0,40982.0,0.00174482]
[1644081376477,0.05619769,40990.0,40983.0,0.25650785]
[1644081376679,0.122018,40988.0,40983.0,0.25663189]
[1644081376934,0.11720728,40990.0,40983.0,0.25663189]
[1644081377128,0.10720728,40990.0,40983.0,0.25663189]
[1644081377326,0.10720728,40990.0,40989.0,0.2]
[1644081377730,0.30396928,40990.0,40985.0,0.00012404]
[1644081378036,0.135755,40987.0,40984.0,0.00012404]
[1644081378229,0.135755,40987.0,40980.0,0.35444068]
[1644081378230,0.18307464,40985.0,40980.0,0.35444068]
[1644081378428,0.18307464,40985.0,40981.0,0.00012403]
[1644081378628,0.18307464,40985.0,40980.0,0.35456471]
[1644081378629,0.37669249,40984.0,40980.0,0.35456471]
[1644081378828,0.37669249,40984.0,40980.0,0.35444068]
[1644081379026,0.37669249,40984.0,40980.0,0.34944068]
[1644081379228,0.05,40983.0,40980.0,0.34944068]
[1644081379428,0.135755,40982.0,40980.0,0.0010194]
[1644081379828,0.135755,40982.0,40978.0,0.00232403]
[1644081380027,0.135755,40982.0,40978.0,0.0022]
[1644081380228,0.06102484,40983.0,40978.0,0.0022]
[1644081380229,0.06102484,40983.0,40979.0,0.21411542]
[1644081380430,0.061026,40984.0,40979.0,0.21411542]
[1644081380683,0.061026,40984.0,40980.0,0.0449]
[1644081381078,0.135755,40989.0,40980.0,0.0449]
[1644081381378,0.18876906,41000.0,40980.0,0.0449]
[1644081381379,0.27461883,40999.0,40980.0,0.04502403]
[1644081381582,0.5792,40991.0,40989.0,0.195]
[1644081381781,0.135755,40990.0,40989.0,0.17]
[1644081381979,0.3,40999.0,40996.0,0.17]
[1644081382177,0.58542906,41000.0,40996.0,0.17]
[1644081382178,0.05,40997.0,40996.0,0.17]
[1644081382378,0.185755,40997.0,40996.0,0.17]
[1644081382581,0.185755,40997.0,40995.0,0.17]
[1644081382779,0.135755,40996.0,40995.0,0.165]
[1644081382983,0.01672906,41000.0,40995.0,0.165]
[1644081383682,0.01672906,41000.0,40996.0,0.0449]
[1644081383882,0.01672906,41000.0,40997.0,0.33922]
[1644081384182,0.01672906,41000.0,40998.0,0.0449]
[1644081384624,0.01672906,41000.0,40998.0,0.25245598]
[1644081384923,0.01672906,41000.0,40998.0,0.0449]
[1644081385123,0.43681581,41000.0,40998.0,0.0449]
[1644081385323,0.135755,40999.0,40998.0,0.0449]
[1644081386524,0.13873206,41000.0,40998.0,0.0449]
[1644081386724,0.185755,40999.0,40998.0,0.0449]
[1644081387125,0.135755,40999.0,40998.0,0.0449]
[1644081387525,0.13873206,41000.0,40998.0,0.0449]
[1644081387927,0.56837387,41011.0,40999.0,0.8]
[1644081388184,0.56837387,41011.0,41010.0,0.05]
[1644081388185,0.50092042,41011.0,41010.0,0.05]
[1644081388584,0.50092042,41011.0,41010.0,0.0949]
[1644081388585,0.56190442,41011.0,41010.0,0.0949]
[1644081388781,0.56190442,41011.0,41010.0,0.13689473]
[1644081388980,0.56190442,41011.0,41010.0,0.26613316]
[1644081389181,0.55623442,41011.0,41010.0,0.26613316]
[1644081389380,0.060984,41011.0,41010.0,0.26613316]
[1644081389581,0.060984,41011.0,41010.0,0.71613316]
[1644081389881,0.060975,41015.0,41011.0,0.09886343]
[1644081390081,0.060975,41015.0,41012.0,0.0449]
[1644081390082,0.00029564,41013.0,41012.0,0.0449]
[1644081390481,0.00029564,41013.0,41012.0,0.0399]
[1644081390884,0.060975,41015.0,41012.0,0.0399]
[1644081391085,0.44167008,41020.0,41005.0,0.0449]
[1644081391086,0.38068608,41020.0,41005.0,0.0449]
[1644081391281,0.38068608,41020.0,41007.0,0.05]
[1644081391282,0.06099,41012.0,41007.0,0.05]
[1644081391481,0.06099,41012.0,41005.0,0.0449]
[1644081391686,0.00029564,41015.0,41011.0,0.05]
[1644081391925,0.00029564,41015.0,41011.0,0.0449]
[1644081392120,0.121964,41018.0,41011.0,0.0449]
[1644081392320,0.00499,41020.0,41014.0,0.05]
[1644081392522,0.00065021,41015.0,41014.0,0.05]
[1644081392719,0.00065021,41015.0,41014.0,0.0949]
[1644081392922,0.00065021,41015.0,41014.0,0.36231911]
[1644081393119,0.00065021,41015.0,41014.0,0.66172893]
[1644081393319,0.00499,41020.0,41014.0,1.32028558]
[1644081393520,0.05,41024.0,41020.0,0.75]
[1644081393730,0.64193,41029.0,41023.0,0.05]
[1644081393731,0.52,41029.0,41023.0,0.05]
[1644081394124,0.52,41029.0,41026.0,0.05]
[1644081394125,0.08441727,41029.0,41026.0,0.05]
[1644081394324,0.02,41039.0,41027.0,0.684036]
[1644081394524,0.02,41039.0,41036.0,0.36664795]
[1644081394724,0.02,41039.0,41036.0,0.0449]
[1644081394926,0.02,41039.0,41037.0,0.3]
[1644081395125,0.02,41039.0,41038.0,0.58946186]
[1644081395323,0.02,41039.0,41038.0,0.63946186]
[1644081395783,0.02,41049.0,41040.0,0.339136]
[1644081395985,0.01746,41049.0,41041.0,0.3449]
[1644081396183,0.01746,41049.0,41048.0,0.05]
[1644081396390,0.01746,41049.0,41048.0,0.0949]
[1644081396584,0.01746,41049.0,41048.0,0.0449]
[1644081396783,0.01746,41049.0,41048.0,0.75918508]
[1644081396984,0.01746,41049.0,41048.0,0.70918508]
[1644081397982,0.00246,41049.0,41048.0,0.70918508]
[1644081398183,0.00246,41049.0,41048.0,0.75918508]
[1644081398585,0.00246,41049.0,41048.0,0.65015288]
[1644081398785,0.00246,41049.0,41048.0,0.0449]
[1644081399187,0.060945,41045.0,41033.0,0.3]
[1644081399436,0.060945,41045.0,41037.0,0.05]
[1644081399437,0.121891,41045.0,41037.0,0.05]
[1644081399631,0.060945,41045.0,41038.0,0.0449]
[1644081399833,0.055945,41045.0,41040.0,0.05]
[1644081400031,0.055945,41045.0,41038.0,0.0449]
[1644081400930,0.00065532,41044.0,41039.0,0.05]
[1644081401129,0.00065532,41044.0,41034.0,0.10042693]
[1644081401331,0.00065532,41044.0,41035.0,0.0449]
[1644081401534,0.00065532,41044.0,41027.0,0.09650469]
[1644081401535,0.060949,41040.0,41027.0,0.09650469]
[1644081401733,0.55,41043.0,41024.0,0.11116001]
[1644081401734,0.4406655,41034.0,41024.0,0.11116001]
[1644081401936,0.4406655,41034.0,41011.0,0.05]
[1644081401937,0.29701767,41033.0,41011.0,0.05]
[1644081402134,0.54001477,41033.0,41023.0,0.19905081]
[1644081402332,0.54001477,41033.0,41018.0,0.09990588]
[1644081402534,0.29701767,41033.0,41018.0,0.09841327]
[1644081402833,0.41603224,41033.0,41010.0,0.1459]
[1644081403035,0.36037762,41032.0,41020.0,0.05]
[1644081403277,0.00065546,41028.0,41013.0,0.33250634]
[1644081403478,0.00065546,41028.0,41020.0,0.05]
[1644081403679,0.00065546,41028.0,41020.0,0.09861773]
[1644081404085,0.13055143,41028.0,41010.0,0.052]
[1644081404282,0.13055143,41028.0,41010.0,0.002]
[1644081404283,0.3,41027.0,41010.0,0.002]
[1644081404482,0.121959,41023.0,41010.0,0.002]
[1644081404684,0.38036764,41014.0,41010.0,0.002]
[1644081404880,0.00065547,41026.0,41010.0,0.002]
[1644081405083,0.06098,41022.0,41010.0,0.052]
[1644081405380,0.06098,41022.0,41010.0,0.002]
[1644081405581,0.00029328,41018.0,41010.0,0.002]
[1644081405779,0.12225028,41018.0,41014.0,0.25491272]
[1644081406280,0.060979,41016.0,41014.0,0.25491272]
[1644081406484,0.182943,41025.0,41017.0,0.05]
[1644081406690,0.1,41028.0,41015.0,0.75]
[1644081406929,0.70892,41031.0,41022.0,0.18837342]
[1644081407125,0.65892,41031.0,41022.0,0.16736863]
[1644081408527,0.060958,41028.0,41022.0,0.16736863]
[1644081408825,0.537,41031.0,41026.0,0.05]
[1644081409027,0.121903,41038.0,41029.0,0.05]
[1644081409424,0.5387,41039.0,41028.0,0.05]
[1644081409624,0.5387,41039.0,41029.0,0.0449]
[1644081409825,0.5387,41039.0,41031.0,0.20873895]
[1644081410224,0.121907,41038.0,41028.0,0.05]
[1644081410426,0.121907,41038.0,41022.0,0.05]
[1644081410427,0.08821883,41034.0,41025.0,0.05]
[1644081410872,0.3342689,41037.0,41025.0,0.05]
[1644081410873,0.00065518,41037.0,41025.0,0.05]
[1644081411074,0.00065518,41037.0,41024.0,0.09798783]
[1644081411273,0.27507335,41036.0,41027.0,0.25465778]
[1644081411476,0.62004547,41039.0,41027.0,0.25465778]
[1644081411676,0.060964,41032.0,41020.0,0.39284953]
[1644081411879,0.060964,41032.0,41020.0,0.49661652]
[1644081412074,0.060964,41032.0,41023.0,0.05]
[1644081412276,0.060964,41032.0,41024.0,0.3]
[1644081412678,0.060949,41036.0,41031.0,0.05]
[1644081413077,0.060949,41036.0,41029.0,0.14295725]
[1644081413478,0.060949,41036.0,41034.0,0.05]
[1644081413679,0.060949,41036.0,41029.0,0.0449]
[1644081414078,0.060949,41036.0,41029.0,0.36811635]
[1644081414294,0.060949,41036.0,41029.0,0.46811635]
[1644081414532,0.060949,41036.0,41029.0,0.26665121]
[1644081414727,0.060949,41036.0,41029.0,0.31665121]
[1644081415028,0.060949,41036.0,41029.0,0.26665121]
[1644081415229,0.00029422,41035.0,41029.0,0.26665121]
[1644081415727,0.00029422,41035.0,41017.0,0.3]
[1644081415728,0.060957,41031.0,41017.0,0.3]
[1644081415926,0.060957,41031.0,41018.0,0.27878043]
[1644081416127,0.07950279,41028.0,41019.0,0.339136]
[1644081416529,0.00029422,41027.0,41022.0,0.339136]
[1644081416926,0.00029422,41027.0,41025.0,0.339136]
[1644081417327,0.01931489,41034.0,41026.0,0.43216805]
[1644081417527,0.01931489,41034.0,41026.0,0.09660998]
[1644081417728,0.00029422,41028.0,41027.0,0.339136]
[1644081418674,0.01931489,41034.0,41027.0,0.339136]
[1644081418875,0.00065608,41030.0,41028.0,0.28468778]
[1644081419082,0.00065608,41030.0,41029.0,0.63073575]
[1644081419277,0.05,41040.0,41030.0,0.8436939]
[1644081419478,0.557,41045.0,41031.0,0.0449]
[1644081419679,0.557,41045.0,41038.0,0.05]
[1644081419876,0.557,41045.0,41039.0,0.0449]
[1644081420077,0.557,41045.0,41039.0,0.25580173]
[1644081420276,0.557,41045.0,41039.0,0.0449]
[1644081420476,0.08211614,41046.0,41039.0,0.0449]
[1644081420677,0.08198574,41046.0,41039.0,0.0449]
[1644081420875,0.182858,41047.0,41039.0,0.0449]
[1644081421476,0.06093868,41045.0,41039.0,0.0449]